[Event "Live Chess"]
[Site "Chess.com"]
[Date "2010.12.01"]
[Round "-"]
[White "hipposcottimus"]
[Black "NickFalgout"]
[Result "1-0"]
[CurrentPosition "3K4/5p2/8/5pp1/5Pk1/8/8/5R2 b - -"]
[Timezone "UTC"]
[ECO "B02"]
[ECOUrl "https://www.chess.com/openings/Alekhines-Defense-John-Tracy-Gambit"]
[UTCDate "2010.12.01"]
[UTCTime "20:18:58"]
[WhiteElo "1684"]
[BlackElo "1392"]
[TimeControl "60"]
[Termination "hipposcottimus won on time"]
[StartTime "20:18:58"]
[EndDate "2010.12.01"]
[EndTime "20:21:16"]
[Link "https://www.chess.com/game/live/73092784"]

1. e4 {[%clk 0:01:00]} 1... Nf6 {[%clk 0:01:00]} 2. Nf3 {[%clk 0:00:59.6]} 2... Nxe4 {[%clk 0:00:57.6]} 3. d3 {[%clk 0:00:59.2]} 3... Nf6 {[%clk 0:00:57.1]} 4. Nc3 {[%clk 0:00:58.7]} 4... g6 {[%clk 0:00:56.5]} 5. Bg5 {[%clk 0:00:58]} 5... Bg7 {[%clk 0:00:55.7]} 6. Ne4 {[%clk 0:00:55.8]} 6... d6 {[%clk 0:00:52.2]} 7. Nxf6+ {[%clk 0:00:54.7]} 7... Bxf6 {[%clk 0:00:51.2]} 8. Bxf6 {[%clk 0:00:54.4]} 8... exf6 {[%clk 0:00:50.8]} 9. Be2 {[%clk 0:00:53.2]} 9... O-O {[%clk 0:00:50.3]} 10. O-O {[%clk 0:00:52.4]} 10... Re8 {[%clk 0:00:49.8]} 11. Re1 {[%clk 0:00:52.1]} 11... Bg4 {[%clk 0:00:49.3]} 12. c4 {[%clk 0:00:51.7]} 12... Nc6 {[%clk 0:00:48.7]} 13. d4 {[%clk 0:00:48.9]} 13... Qe7 {[%clk 0:00:44.1]} 14. d5 {[%clk 0:00:47.1]} 14... Qxe2 {[%clk 0:00:42.9]} 15. Qxe2 {[%clk 0:00:44.1]} 15... Rxe2 {[%clk 0:00:42.1]} 16. Rxe2 {[%clk 0:00:43.8]} 16... Bxf3 {[%clk 0:00:40.7]} 17. gxf3 {[%clk 0:00:43.5]} 17... Nd4 {[%clk 0:00:39.6]} 18. Rd2 {[%clk 0:00:43.2]} 18... Nf5 {[%clk 0:00:37.7]} 19. Re1 {[%clk 0:00:42.7]} 19... Kg7 {[%clk 0:00:35.3]} 20. Rde2 {[%clk 0:00:42.3]} 20... a5 {[%clk 0:00:32.7]} 21. a3 {[%clk 0:00:40.6]} 21... Nd4 {[%clk 0:00:31.8]} 22. b4 {[%clk 0:00:39.6]} 22... Nxe2+ {[%clk 0:00:30.7]} 23. Rxe2 {[%clk 0:00:38.5]} 23... axb4 {[%clk 0:00:30.4]} 24. Re7 {[%clk 0:00:38.1]} 24... Rxa3 {[%clk 0:00:29]} 25. Rxc7 {[%clk 0:00:37.6]} 25... Ra1+ {[%clk 0:00:28.6]} 26. Kg2 {[%clk 0:00:35.8]} 26... b6 {[%clk 0:00:28.1]} 27. Rb7 {[%clk 0:00:35.2]} 27... Rc1 {[%clk 0:00:26.8]} 28. Rxb6 {[%clk 0:00:34.5]} 28... Rxc4 {[%clk 0:00:26.3]} 29. Rxd6 {[%clk 0:00:33.8]} 29... b3 {[%clk 0:00:25.5]} 30. Rb6 {[%clk 0:00:33.3]} 30... Rc5 {[%clk 0:00:21.9]} 31. d6 {[%clk 0:00:31.9]} 31... Rd5 {[%clk 0:00:20.7]} 32. f4 {[%clk 0:00:27.8]} 32... Rd3 {[%clk 0:00:20.1]} 33. f3 {[%clk 0:00:23.3]} 33... f5 {[%clk 0:00:19.3]} 34. Kf1 {[%clk 0:00:22.6]} 34... Rxf3+ {[%clk 0:00:17.7]} 35. Ke2 {[%clk 0:00:21.4]} 35... Rh3 {[%clk 0:00:16.1]} 36. d7 {[%clk 0:00:19.5]} 36... Rxh2+ {[%clk 0:00:14.7]} 37. Kd3 {[%clk 0:00:19.2]} 37... b2 {[%clk 0:00:11.7]} 38. Kc4 {[%clk 0:00:17.7]} 38... b1=Q {[%clk 0:00:10.1]} 39. Rxb1 {[%clk 0:00:15.9]} 39... Rd2 {[%clk 0:00:09.8]} 40. Rb7 {[%clk 0:00:14.1]} 40... Rd1 {[%clk 0:00:08.8]} 41. Kc5 {[%clk 0:00:13.4]} 41... h5 {[%clk 0:00:07.9]} 42. Kc6 {[%clk 0:00:11.3]} 42... h4 {[%clk 0:00:07.2]} 43. Kc7 {[%clk 0:00:10.6]} 43... h3 {[%clk 0:00:06]} 44. d8=Q {[%clk 0:00:08.9]} 44... Rxd8 {[%clk 0:00:05.6]} 45. Kxd8 {[%clk 0:00:08.2]} 45... h2 {[%clk 0:00:04]} 46. Rb1 {[%clk 0:00:07.9]} 46... Kh6 {[%clk 0:00:02.2]} 47. Rh1 {[%clk 0:00:07.6]} 47... Kh5 {[%clk 0:00:02.2]} 48. Rxh2+ {[%clk 0:00:07.3]} 48... Kg4 {[%clk 0:00:02.2]} 49. Rf2 {[%clk 0:00:06.7]} 49... g5 {[%clk 0:00:01]} 50. Rf1 {[%clk 0:00:06.3]} 1-0

[Event "Live Chess"]
[Site "Chess.com"]
[Date "2010.12.01"]
[Round "-"]
[White "Johnranellucci"]
[Black "hipposcottimus"]
[Result "1-0"]
[CurrentPosition "1r4rk/1b5p/8/2PppN2/1P2n2N/P4pP1/5P1P/3RR1K1 b - -"]
[Timezone "UTC"]
[ECO "C25"]
[ECOUrl "https://www.chess.com/openings/Vienna-Game-Max-Lange-Defense-3.Bc4-Nf6"]
[UTCDate "2010.12.01"]
[UTCTime "20:15:05"]
[WhiteElo "1731"]
[BlackElo "1681"]
[TimeControl "60"]
[Termination "Johnranellucci won on time"]
[StartTime "20:15:05"]
[EndDate "2010.12.01"]
[EndTime "20:17:08"]
[Link "https://www.chess.com/game/live/73091660"]

1. e4 {[%clk 0:01:00]} 1... e5 {[%clk 0:01:00]} 2. Nc3 {[%clk 0:00:59.5]} 2... Nc6 {[%clk 0:00:59.2]} 3. Bc4 {[%clk 0:00:59.1]} 3... Nf6 {[%clk 0:00:58.5]} 4. a3 {[%clk 0:00:58.8]} 4... Na5 {[%clk 0:00:57.9]} 5. d3 {[%clk 0:00:58.4]} 5... Nxc4 {[%clk 0:00:56.4]} 6. dxc4 {[%clk 0:00:58.1]} 6... b5 {[%clk 0:00:53.6]} 7. cxb5 {[%clk 0:00:56.2]} 7... a6 {[%clk 0:00:53.3]} 8. bxa6 {[%clk 0:00:53.6]} 8... Bxa6 {[%clk 0:00:52]} 9. Be3 {[%clk 0:00:53.2]} 9... c6 {[%clk 0:00:45.7]} 10. Nf3 {[%clk 0:00:52.5]} 10... Be7 {[%clk 0:00:45.1]} 11. Qd2 {[%clk 0:00:47.3]} 11... d6 {[%clk 0:00:44.6]} 12. b4 {[%clk 0:00:43.3]} 12... O-O {[%clk 0:00:44.3]} 13. Ne2 {[%clk 0:00:40.5]} 13... Rb8 {[%clk 0:00:40.4]} 14. O-O {[%clk 0:00:40]} 14... Bb7 {[%clk 0:00:38.8]} 15. Rfe1 {[%clk 0:00:38.3]} 15... d5 {[%clk 0:00:37.5]} 16. exd5 {[%clk 0:00:36.8]} 16... cxd5 {[%clk 0:00:36.3]} 17. Nxe5 {[%clk 0:00:36.5]} 17... Bd6 {[%clk 0:00:35.4]} 18. Nf3 {[%clk 0:00:34.7]} 18... Qc7 {[%clk 0:00:35]} 19. Ned4 {[%clk 0:00:33.6]} 19... Ne4 {[%clk 0:00:33.7]} 20. Qd3 {[%clk 0:00:30.9]} 20... g5 {[%clk 0:00:22.4]} 21. c4 {[%clk 0:00:28.1]} 21... Kh8 {[%clk 0:00:20.6]} 22. c5 {[%clk 0:00:25.1]} 22... Bf4 {[%clk 0:00:17.1]} 23. Bxf4 {[%clk 0:00:23.7]} 23... gxf4 {[%clk 0:00:15.8]} 24. Nf5 {[%clk 0:00:21.8]} 24... Rg8 {[%clk 0:00:14.8]} 25. N3h4 {[%clk 0:00:19.7]} 25... f3 {[%clk 0:00:07.3]} 26. Qd4+ {[%clk 0:00:19]} 26... f6 {[%clk 0:00:04.9]} 27. g3 {[%clk 0:00:13.5]} 27... Qe5 {[%clk 0:00:03.6]} 28. Qxe5 {[%clk 0:00:11.2]} 28... fxe5 {[%clk 0:00:03.3]} 29. Rad1 {[%clk 0:00:08.3]} 1-0

[Event "Live Chess"]
[Site "Chess.com"]
[Date "2010.12.01"]
[Round "-"]
[White "hipposcottimus"]
[Black "Johnranellucci"]
[Result "0-1"]
[CurrentPosition "8/1pp5/1pkp4/8/8/r6R/1r3KPP/8 w - -"]
[Timezone "UTC"]
[ECO "C52"]
[ECOUrl "https://www.chess.com/openings/Giuoco-Piano-Game-Evans-Accepted-Slow-Variation"]
[UTCDate "2010.12.01"]
[UTCTime "20:13:05"]
[WhiteElo "1688"]
[BlackElo "1724"]
[TimeControl "60"]
[Termination "Johnranellucci won by resignation"]
[StartTime "20:13:05"]
[EndDate "2010.12.01"]
[EndTime "20:14:52"]
[Link "https://www.chess.com/game/live/73091137"]

1. e4 {[%clk 0:01:00]} 1... e5 {[%clk 0:01:00]} 2. Nf3 {[%clk 0:00:58.9]} 2... Nc6 {[%clk 0:00:59.1]} 3. Bc4 {[%clk 0:00:58.6]} 3... Bc5 {[%clk 0:00:58.3]} 4. b4 {[%clk 0:00:57.4]} 4... Bxb4 {[%clk 0:00:56.7]} 5. c3 {[%clk 0:00:57.1]} 5... Ba5 {[%clk 0:00:56]} 6. O-O {[%clk 0:00:56.8]} 6... Bb6 {[%clk 0:00:55.6]} 7. d4 {[%clk 0:00:55.1]} 7... exd4 {[%clk 0:00:53.5]} 8. cxd4 {[%clk 0:00:54.9]} 8... d6 {[%clk 0:00:53.1]} 9. Nc3 {[%clk 0:00:54.4]} 9... Bg4 {[%clk 0:00:52.4]} 10. Bb3 {[%clk 0:00:53.4]} 10... Nxd4 {[%clk 0:00:51.8]} 11. Bxf7+ {[%clk 0:00:45.9]} 11... Kxf7 {[%clk 0:00:50.3]} 12. Ng5+ {[%clk 0:00:45]} 12... Qxg5 {[%clk 0:00:46.4]} 13. Bxg5 {[%clk 0:00:40.9]} 13... Bxd1 {[%clk 0:00:45.4]} 14. Rfxd1 {[%clk 0:00:40.6]} 14... Ne6 {[%clk 0:00:44]} 15. Nd5 {[%clk 0:00:40.2]} 15... Nh6 {[%clk 0:00:38.5]} 16. Bxh6 {[%clk 0:00:38.2]} 16... gxh6 {[%clk 0:00:37.4]} 17. Nxb6 {[%clk 0:00:30.4]} 17... axb6 {[%clk 0:00:35.7]} 18. f4 {[%clk 0:00:30.2]} 18... Nxf4 {[%clk 0:00:34.5]} 19. Rf1 {[%clk 0:00:28.8]} 19... Ke6 {[%clk 0:00:33.1]} 20. Rxf4 {[%clk 0:00:27.4]} 20... Ra4 {[%clk 0:00:31.3]} 21. Kf2 {[%clk 0:00:20.2]} 21... Rha8 {[%clk 0:00:30]} 22. Kf3 {[%clk 0:00:19.6]} 22... Rxa2 {[%clk 0:00:29]} 23. Kg4 {[%clk 0:00:19.2]} 23... Rxa1 {[%clk 0:00:27]} 24. Rf5 {[%clk 0:00:18.6]} 24... R1a4 {[%clk 0:00:25.6]} 25. Rh5 {[%clk 0:00:17.4]} 25... Rxe4+ {[%clk 0:00:24.3]} 26. Kg3 {[%clk 0:00:17.1]} 26... Ra3+ {[%clk 0:00:22.3]} 27. Kf2 {[%clk 0:00:15.1]} 27... Rb4 {[%clk 0:00:21.7]} 28. Rxh6+ {[%clk 0:00:13.5]} 28... Kd7 {[%clk 0:00:21.3]} 29. Rxh7+ {[%clk 0:00:09.4]} 29... Kc6 {[%clk 0:00:20.6]} 30. Rh3 {[%clk 0:00:08.2]} 30... Rb2+ {[%clk 0:00:19.8]} 0-1

[Event "Live Chess"]
[Site "Chess.com"]
[Date "2010.12.01"]
[Round "-"]
[White "MrMartin"]
[Black "hipposcottimus"]
[Result "0-1"]
[CurrentPosition "r1b2r1k/ppq1bppp/1n6/8/3P4/P3BN2/BP2QPPP/R2R2K1 w - -"]
[Timezone "UTC"]
[ECO "D04"]
[ECOUrl "https://www.chess.com/openings/Colle-System"]
[UTCDate "2010.12.01"]
[UTCTime "20:11:42"]
[WhiteElo "1603"]
[BlackElo "1695"]
[TimeControl "60"]
[Termination "hipposcottimus won on time"]
[StartTime "20:11:42"]
[EndDate "2010.12.01"]
[EndTime "20:12:49"]
[Link "https://www.chess.com/game/live/73090634"]

1. d4 {[%clk 0:01:00]} 1... d5 {[%clk 0:01:00]} 2. e3 {[%clk 0:00:58.6]} 2... Nf6 {[%clk 0:00:57.5]} 3. Nf3 {[%clk 0:00:57.1]} 3... Nfd7 {[%clk 0:00:57.2]} 4. Bd3 {[%clk 0:00:54.8]} 4... c5 {[%clk 0:00:55.8]} 5. O-O {[%clk 0:00:52]} 5... cxd4 {[%clk 0:00:53.7]} 6. exd4 {[%clk 0:00:50]} 6... e6 {[%clk 0:00:53.5]} 7. c4 {[%clk 0:00:48.2]} 7... Be7 {[%clk 0:00:53]} 8. Nc3 {[%clk 0:00:46.9]} 8... Nc6 {[%clk 0:00:49.8]} 9. Be3 {[%clk 0:00:45.6]} 9... Nb4 {[%clk 0:00:46.7]} 10. Qe2 {[%clk 0:00:44]} 10... O-O {[%clk 0:00:40.3]} 11. a3 {[%clk 0:00:41.2]} 11... dxc4 {[%clk 0:00:39.3]} 12. Bxc4 {[%clk 0:00:38.2]} 12... Nd5 {[%clk 0:00:38.5]} 13. Nxd5 {[%clk 0:00:36.1]} 13... exd5 {[%clk 0:00:37.5]} 14. Bxd5 {[%clk 0:00:34.8]} 14... Nb6 {[%clk 0:00:37.2]} 15. Ba2 {[%clk 0:00:32.6]} 15... Kh8 {[%clk 0:00:33.1]} 16. Rfd1 {[%clk 0:00:30.8]} 16... Qc7 {[%clk 0:00:30.8]} 0-1

[Event "Live Chess"]
[Site "Chess.com"]
[Date "2010.12.01"]
[Round "-"]
[White "potomonto"]
[Black "hipposcottimus"]
[Result "0-1"]
[CurrentPosition "r4rk1/ppb3pp/6n1/1P6/P1Pp4/3P2Pb/R2N1q1P/3QR1K1 w - -"]
[Timezone "UTC"]
[ECO "C23"]
[ECOUrl "https://www.chess.com/openings/Bishops-Opening-2...Nc6"]
[UTCDate "2010.12.01"]
[UTCTime "20:09:13"]
[WhiteElo "1488"]
[BlackElo "1695"]
[TimeControl "60"]
[Termination "hipposcottimus won by resignation"]
[StartTime "20:09:13"]
[EndDate "2010.12.01"]
[EndTime "20:10:32"]
[Link "https://www.chess.com/game/live/73090051"]

1. e4 {[%clk 0:01:00]} 1... e5 {[%clk 0:01:00]} 2. Bc4 {[%clk 0:00:59.4]} 2... Nc6 {[%clk 0:00:57.9]} 3. Bxf7+ {[%clk 0:00:58.7]} 3... Kxf7 {[%clk 0:00:56.3]} 4. d3 {[%clk 0:00:58.3]} 4... Nf6 {[%clk 0:00:55.3]} 5. c3 {[%clk 0:00:57.6]} 5... Bd6 {[%clk 0:00:54.2]} 6. b4 {[%clk 0:00:54.2]} 6... Rf8 {[%clk 0:00:53.8]} 7. Be3 {[%clk 0:00:50.9]} 7... Ne7 {[%clk 0:00:52.3]} 8. Nf3 {[%clk 0:00:49.9]} 8... Kg8 {[%clk 0:00:51.3]} 9. Nbd2 {[%clk 0:00:48.9]} 9... Ng6 {[%clk 0:00:51]} 10. O-O {[%clk 0:00:48.2]} 10... c6 {[%clk 0:00:49.7]} 11. a4 {[%clk 0:00:45.2]} 11... Bc7 {[%clk 0:00:49.4]} 12. b5 {[%clk 0:00:43.6]} 12... d5 {[%clk 0:00:49.1]} 13. exd5 {[%clk 0:00:40.9]} 13... cxd5 {[%clk 0:00:48.1]} 14. c4 {[%clk 0:00:38.7]} 14... e4 {[%clk 0:00:47.3]} 15. Bd4 {[%clk 0:00:37.3]} 15... exf3 {[%clk 0:00:46]} 16. Bxf6 {[%clk 0:00:36.5]} 16... Qxf6 {[%clk 0:00:45.6]} 17. Nxf3 {[%clk 0:00:35.7]} 17... d4 {[%clk 0:00:43.4]} 18. Ra2 {[%clk 0:00:32.4]} 18... Qd6 {[%clk 0:00:42.7]} 19. g3 {[%clk 0:00:27.4]} 19... Bh3 {[%clk 0:00:38.8]} 20. Re1 {[%clk 0:00:25.4]} 20... Qf6 {[%clk 0:00:35.5]} 21. Nd2 {[%clk 0:00:20.5]} 21... Qxf2+ {[%clk 0:00:31.2]} 0-1

[Event "Live Chess"]
[Site "Chess.com"]
[Date "2010.12.01"]
[Round "-"]
[White "luab"]
[Black "hipposcottimus"]
[Result "0-1"]
[CurrentPosition "r3r1k1/ppp3pp/2qb4/8/4p1b1/2N5/PPPB1P1P/2KR1R2 w - -"]
[Timezone "UTC"]
[ECO "C57"]
[ECOUrl "https://www.chess.com/openings/Italian-Game-Knight-Attack-Normal-Variation"]
[UTCDate "2010.12.01"]
[UTCTime "20:07:44"]
[WhiteElo "1438"]
[BlackElo "1691"]
[TimeControl "60"]
[Termination "hipposcottimus won by resignation"]
[StartTime "20:07:44"]
[EndDate "2010.12.01"]
[EndTime "20:08:28"]
[Link "https://www.chess.com/game/live/73089674"]

1. e4 {[%clk 0:01:00]} 1... e5 {[%clk 0:01:00]} 2. Nf3 {[%clk 0:00:59.6]} 2... Nc6 {[%clk 0:00:59.6]} 3. Bc4 {[%clk 0:00:59.2]} 3... Nf6 {[%clk 0:00:59.3]} 4. Ng5 {[%clk 0:00:58.3]} 4... d5 {[%clk 0:00:59]} 5. Bxd5 {[%clk 0:00:57.3]} 5... Nxd5 {[%clk 0:00:57.1]} 6. exd5 {[%clk 0:00:57]} 6... Qxg5 {[%clk 0:00:56.3]} 7. dxc6 {[%clk 0:00:54.9]} 7... Qxg2 {[%clk 0:00:55.9]} 8. Rf1 {[%clk 0:00:54.4]} 8... Qxc6 {[%clk 0:00:54.9]} 9. Qe2 {[%clk 0:00:51.7]} 9... Bd6 {[%clk 0:00:54.6]} 10. Nc3 {[%clk 0:00:50]} 10... O-O {[%clk 0:00:54.3]} 11. d3 {[%clk 0:00:47.6]} 11... f5 {[%clk 0:00:54]} 12. Bd2 {[%clk 0:00:44.1]} 12... e4 {[%clk 0:00:53.6]} 13. dxe4 {[%clk 0:00:42.2]} 13... fxe4 {[%clk 0:00:53.4]} 14. O-O-O {[%clk 0:00:40.3]} 14... Re8 {[%clk 0:00:52.4]} 15. Qg4 {[%clk 0:00:34.9]} 15... Bxg4 {[%clk 0:00:49.3]} 0-1

[Event "Live Chess"]
[Site "Chess.com"]
[Date "2010.12.01"]
[Round "-"]
[White "hipposcottimus"]
[Black "Maddy1234"]
[Result "1-0"]
[CurrentPosition "rnb1k3/p3qpB1/2p4p/1p2N1p1/8/8/PPPQBPPP/3RK2R b Kkq -"]
[Timezone "UTC"]
[ECO "C40"]
[ECOUrl "https://www.chess.com/openings/Kings-Pawn-Opening-Kings-Knight-McConnell-Defense"]
[UTCDate "2010.12.01"]
[UTCTime "19:22:13"]
[WhiteElo "1688"]
[BlackElo "1398"]
[TimeControl "60"]
[Termination "hipposcottimus won on time"]
[StartTime "19:22:13"]
[EndDate "2010.12.01"]
[EndTime "19:24:13"]
[Link "https://www.chess.com/game/live/73077334"]

1. e4 {[%clk 0:01:00]} 1... e5 {[%clk 0:01:00]} 2. Nf3 {[%clk 0:00:59.4]} 2... Qf6 {[%clk 0:00:58.8]} 3. Nc3 {[%clk 0:00:57.7]} 3... c6 {[%clk 0:00:57.8]} 4. d4 {[%clk 0:00:55.9]} 4... d6 {[%clk 0:00:56.8]} 5. dxe5 {[%clk 0:00:54]} 5... dxe5 {[%clk 0:00:55.9]} 6. Bg5 {[%clk 0:00:52.8]} 6... Qd6 {[%clk 0:00:53.3]} 7. Bh4 {[%clk 0:00:52.5]} 7... Qc7 {[%clk 0:00:45.7]} 8. Bg3 {[%clk 0:00:48.7]} 8... Bd6 {[%clk 0:00:42.3]} 9. Qd2 {[%clk 0:00:47.8]} 9... h6 {[%clk 0:00:40]} 10. Rd1 {[%clk 0:00:46.8]} 10... g5 {[%clk 0:00:32.3]} 11. Nxe5 {[%clk 0:00:38.8]} 11... Bxe5 {[%clk 0:00:29.1]} 12. Bxe5 {[%clk 0:00:38]} 12... Qb6 {[%clk 0:00:24.1]} 13. Bxh8 {[%clk 0:00:35.5]} 13... Ne7 {[%clk 0:00:20.8]} 14. Bg7 {[%clk 0:00:32.7]} 14... Ng6 {[%clk 0:00:17.6]} 15. Na4 {[%clk 0:00:29.7]} 15... Qc7 {[%clk 0:00:12.9]} 16. Nc5 {[%clk 0:00:27.9]} 16... b6 {[%clk 0:00:10.5]} 17. Nd3 {[%clk 0:00:18.8]} 17... b5 {[%clk 0:00:07.8]} 18. e5 {[%clk 0:00:18]} 18... Nxe5 {[%clk 0:00:04.3]} 19. Nxe5 {[%clk 0:00:17.3]} 19... Qe7 {[%clk 0:00:01.9]} 20. Be2 {[%clk 0:00:08.7]} 1-0

[Event "Live Chess"]
[Site "Chess.com"]
[Date "2010.12.01"]
[Round "-"]
[White "SeanOB"]
[Black "hipposcottimus"]
[Result "1-0"]
[CurrentPosition "2bQr2k/6pp/8/pp6/3P4/2P3P1/PP5P/2K5 w - -"]
[Timezone "UTC"]
[ECO "D02"]
[ECOUrl "https://www.chess.com/openings/Queens-Pawn-Opening-Zukertort-Variation-2...c6-3.Bg5"]
[UTCDate "2010.12.01"]
[UTCTime "19:19:14"]
[WhiteElo "1048"]
[BlackElo "1685"]
[TimeControl "60"]
[Termination "SeanOB won by resignation"]
[StartTime "19:19:14"]
[EndDate "2010.12.01"]
[EndTime "19:21:09"]
[Link "https://www.chess.com/game/live/73076487"]

1. d4 {[%clk 0:01:00]} 1... d5 {[%clk 0:01:00]} 2. Nf3 {[%clk 0:01:00]} 2... c6 {[%clk 0:00:59.5]} 3. Bg5 {[%clk 0:00:59.7]} 3... Nd7 {[%clk 0:00:59]} 4. e3 {[%clk 0:00:58.7]} 4... f6 {[%clk 0:00:58.7]} 5. Bh4 {[%clk 0:00:57.5]} 5... Nh6 {[%clk 0:00:55.6]} 6. Bd3 {[%clk 0:00:55.8]} 6... f5 {[%clk 0:00:53.8]} 7. Nbd2 {[%clk 0:00:53.6]} 7... Nf6 {[%clk 0:00:53.1]} 8. c3 {[%clk 0:00:51.3]} 8... e6 {[%clk 0:00:50.5]} 9. Ne5 {[%clk 0:00:49.7]} 9... Be7 {[%clk 0:00:48.9]} 10. Be2 {[%clk 0:00:48.3]} 10... Ne4 {[%clk 0:00:47.4]} 11. Bxe7 {[%clk 0:00:45.1]} 11... Qxe7 {[%clk 0:00:46.2]} 12. Nxe4 {[%clk 0:00:43.5]} 12... dxe4 {[%clk 0:00:45.9]} 13. f3 {[%clk 0:00:41.6]} 13... O-O {[%clk 0:00:45.4]} 14. fxe4 {[%clk 0:00:40.7]} 14... fxe4 {[%clk 0:00:45.1]} 15. Qd2 {[%clk 0:00:38.6]} 15... Nf5 {[%clk 0:00:44.7]} 16. O-O-O {[%clk 0:00:36.5]} 16... Qg5 {[%clk 0:00:42.8]} 17. Rde1 {[%clk 0:00:28.5]} 17... b6 {[%clk 0:00:38.3]} 18. Bg4 {[%clk 0:00:23.8]} 18... c5 {[%clk 0:00:36.9]} 19. Bxf5 {[%clk 0:00:22.9]} 19... exf5 {[%clk 0:00:36.3]} 20. g3 {[%clk 0:00:21.7]} 20... Qe7 {[%clk 0:00:34.2]} 21. Rhf1 {[%clk 0:00:20.8]} 21... cxd4 {[%clk 0:00:33.4]} 22. exd4 {[%clk 0:00:19.8]} 22... Ba6 {[%clk 0:00:33.1]} 23. Rf4 {[%clk 0:00:17.9]} 23... Rad8 {[%clk 0:00:32.4]} 24. Qf2 {[%clk 0:00:17]} 24... Bb7 {[%clk 0:00:31.1]} 25. Rxf5 {[%clk 0:00:14.7]} 25... Bc8 {[%clk 0:00:29.3]} 26. Rxf8+ {[%clk 0:00:12.5]} 26... Rxf8 {[%clk 0:00:29]} 27. Qe3 {[%clk 0:00:11]} 27... b5 {[%clk 0:00:26.9]} 28. Qxe4 {[%clk 0:00:09.5]} 28... a5 {[%clk 0:00:25.4]} 29. Qd5+ {[%clk 0:00:08.6]} 29... Kh8 {[%clk 0:00:23.7]} 30. Nf7+ {[%clk 0:00:05.3]} 30... Rxf7 {[%clk 0:00:22]} 31. Rxe7 {[%clk 0:00:02.8]} 31... Rxe7 {[%clk 0:00:20]} 32. Qd8+ {[%clk 0:00:02.4]} 32... Re8 {[%clk 0:00:18.9]} 1-0

[Event "Live Chess"]
[Site "Chess.com"]
[Date "2010.12.01"]
[Round "-"]
[White "hipposcottimus"]
[Black "SeanOB"]
[Result "0-1"]
[CurrentPosition "8/8/8/3k3K/6p1/8/6PP/8 w - -"]
[Timezone "UTC"]
[ECO "B10"]
[ECOUrl "https://www.chess.com/openings/Caro-Kann-Defense-2.Nf3-d5"]
[UTCDate "2010.12.01"]
[UTCTime "19:16:37"]
[WhiteElo "1685"]
[BlackElo "1048"]
[TimeControl "60"]
[Termination "SeanOB won on time"]
[StartTime "19:16:37"]
[EndDate "2010.12.01"]
[EndTime "19:18:50"]
[Link "https://www.chess.com/game/live/73075685"]

1. e4 {[%clk 0:01:00]} 1... c6 {[%clk 0:01:00]} 2. Nf3 {[%clk 0:00:59.7]} 2... d5 {[%clk 0:01:00]} 3. e5 {[%clk 0:00:59]} 3... Bg4 {[%clk 0:00:58.5]} 4. d4 {[%clk 0:00:57.1]} 4... Bxf3 {[%clk 0:00:58.5]} 5. Qxf3 {[%clk 0:00:56.7]} 5... e6 {[%clk 0:00:58.5]} 6. c4 {[%clk 0:00:55]} 6... Qb6 {[%clk 0:00:58.5]} 7. c5 {[%clk 0:00:47]} 7... Qa5+ {[%clk 0:00:57.6]} 8. Nc3 {[%clk 0:00:45.8]} 8... Qb4 {[%clk 0:00:56.3]} 9. Be2 {[%clk 0:00:44]} 9... Qxd4 {[%clk 0:00:55.2]} 10. O-O {[%clk 0:00:42.4]} 10... Qxe5 {[%clk 0:00:54.5]} 11. Bf4 {[%clk 0:00:39.1]} 11... Qf6 {[%clk 0:00:53.6]} 12. Bd6 {[%clk 0:00:38.8]} 12... e5 {[%clk 0:00:50.7]} 13. Rfe1 {[%clk 0:00:31.4]} 13... Qxf3 {[%clk 0:00:49.1]} 14. Bxf3 {[%clk 0:00:30.4]} 14... Bxd6 {[%clk 0:00:48.3]} 15. cxd6 {[%clk 0:00:30.1]} 15... e4 {[%clk 0:00:47.6]} 16. b4 {[%clk 0:00:26.8]} 16... Nf6 {[%clk 0:00:45.6]} 17. b5 {[%clk 0:00:25.9]} 17... O-O {[%clk 0:00:43.6]} 18. bxc6 {[%clk 0:00:25.1]} 18... bxc6 {[%clk 0:00:42.8]} 19. Bg4 {[%clk 0:00:23.4]} 19... Nbd7 {[%clk 0:00:41]} 20. Rac1 {[%clk 0:00:23.1]} 20... Rfd8 {[%clk 0:00:38.3]} 21. Na4 {[%clk 0:00:22.8]} 21... c5 {[%clk 0:00:36.5]} 22. Nxc5 {[%clk 0:00:20.8]} 22... Nxc5 {[%clk 0:00:35.7]} 23. Rxc5 {[%clk 0:00:20.3]} 23... Rxd6 {[%clk 0:00:35.2]} 24. Rd1 {[%clk 0:00:19.3]} 24... Rad8 {[%clk 0:00:34.3]} 25. Bc8 {[%clk 0:00:15.9]} 25... h6 {[%clk 0:00:32.4]} 26. Bb7 {[%clk 0:00:15.5]} 26... d4 {[%clk 0:00:30.9]} 27. Re5 {[%clk 0:00:13.2]} 27... d3 {[%clk 0:00:29.6]} 28. Bxe4 {[%clk 0:00:12.2]} 28... Nxe4 {[%clk 0:00:28.7]} 29. Rxe4 {[%clk 0:00:12]} 29... d2 {[%clk 0:00:28.1]} 30. Re2 {[%clk 0:00:11.6]} 30... Kf8 {[%clk 0:00:26.6]} 31. Kf1 {[%clk 0:00:11.3]} 31... a5 {[%clk 0:00:25.7]} 32. f3 {[%clk 0:00:11]} 32... a4 {[%clk 0:00:24.7]} 33. Kf2 {[%clk 0:00:10.7]} 33... a3 {[%clk 0:00:24.1]} 34. Ke3 {[%clk 0:00:10.4]} 34... Re8+ {[%clk 0:00:22.5]} 35. Kf2 {[%clk 0:00:09.2]} 35... Rxe2+ {[%clk 0:00:21.6]} 36. Kxe2 {[%clk 0:00:08.7]} 36... Ke7 {[%clk 0:00:21.3]} 37. Rxd2 {[%clk 0:00:08.2]} 37... Rxd2+ {[%clk 0:00:20.9]} 38. Kxd2 {[%clk 0:00:06.7]} 38... Kd6 {[%clk 0:00:20.9]} 39. Kc3 {[%clk 0:00:06.4]} 39... Kc5 {[%clk 0:00:20.4]} 40. Kb3 {[%clk 0:00:06.2]} 40... Kb5 {[%clk 0:00:19.7]} 41. Kxa3 {[%clk 0:00:05.9]} 41... f5 {[%clk 0:00:19.7]} 42. Kb3 {[%clk 0:00:05.7]} 42... g5 {[%clk 0:00:18.8]} 43. a4+ {[%clk 0:00:05.4]} 43... Ka5 {[%clk 0:00:16.9]} 44. Kc4 {[%clk 0:00:05]} 44... Kxa4 {[%clk 0:00:16]} 45. Kd4 {[%clk 0:00:04.7]} 45... g4 {[%clk 0:00:15.3]} 46. fxg4 {[%clk 0:00:03.7]} 46... fxg4 {[%clk 0:00:14.6]} 47. Ke4 {[%clk 0:00:03.5]} 47... h5 {[%clk 0:00:12.4]} 48. Kf4 {[%clk 0:00:02.3]} 48... Kb5 {[%clk 0:00:12.4]} 49. Kg5 {[%clk 0:00:01.3]} 49... Kc4 {[%clk 0:00:12.4]} 50. Kxh5 {[%clk 0:00:00.3]} 50... Kd5 {[%clk 0:00:12.4]} 0-1